fUST/lending_fUST_20260208
["ID","MTS","AMOUNT","RATE_DAILY","PERIOD"]
[404700796,1770483784571,430.79655384,0.00013699,2]
[404700797,1770483798542,300.0,0.00013673,2]
[404700798,1770483844009,500.0,0.00013273,2]
[404700799,1770483846876,221.92612848,0.00013699,2]
[404700800,1770484029822,500.0,0.00013699,2]
[404700801,1770484083757,500.8021068,0.00013699,2]
[404700802,1770484173188,-905.17891019,0.00016598,2]
[404700823,1770484231699,-1593.96474608,0.00016432,2]
[404700854,1770484237840,-1484.2757415,0.00016432,2]
[404700856,1770484237850,-4094.82108981,0.00016598,2]
[404700858,1770484237860,-662.0,0.00016598,2]
[404700860,1770484237868,-2597.59593088,0.00016766,2]
[404700862,1770484237878,-196.0,0.00016934,2]
[404700864,1770484237887,-150.0,0.00017021,2]
[404700866,1770484237896,-300.0,0.00017104,2]
[404700868,1770484237906,-300.0,0.00017104,2]
[404700870,1770484237915,-300.0,0.00017717,2]
[404700872,1770484237924,-300.0,0.00017717,2]
[404700874,1770484237933,-162.03960009,0.00017806,2]
[404700876,1770484237943,-500.0,0.00017806,2]
[404700878,1770484237952,-500.0,0.00017806,2]
[404700880,1770484237961,-500.0,0.00017806,2]
[404700882,1770484237970,-500.0,0.00017806,2]
[404700884,1770484237979,-192.19185757,0.00017806,2]
[404700885,1770484237988,-500.0,0.00017806,2]
[404700887,1770484237997,-500.0,0.00017806,2]
[404700889,1770484238007,-500.0,0.00017806,2]
[404700891,1770484238016,-500.0,0.00017806,2]
[404700893,1770484238025,-500.0,0.00017806,2]
[404700894,1770484238035,-500.0,0.00017806,2]
[404700896,1770484238045,-500.0,0.00017806,2]
[404700898,1770484238055,-500.0,0.00017806,2]
[404700900,1770484238064,-500.0,0.00017806,2]
[404700902,1770484238074,-500.0,0.00017806,2]
[404700904,1770484238083,-500.0,0.00017806,2]
[404700906,1770484238093,-500.0,0.00017806,2]
[404700907,1770484238102,-500.0,0.00017806,2]
[404700909,1770484238112,-500.0,0.00017806,2]
[404700911,1770484238121,-324.64558953,0.00017806,2]
[404700913,1770484238130,-449.57052519,0.00017806,2]
[404700915,1770484238139,-500.0,0.00017806,2]
[404700917,1770484238149,-500.0,0.00017806,2]
[404700919,1770484238158,-500.0,0.00017806,2]
[404700920,1770484238167,-500.0,0.00017806,2]
[404700922,1770484238177,-449.5957513,0.00017806,2]
[404700924,1770484238186,-500.0,0.00017806,2]
[404700926,1770484238196,-500.0,0.00017806,2]
[404700928,1770484238206,-500.0,0.00017806,2]
[404700930,1770484238215,-500.0,0.00017806,2]
[404700931,1770484238224,-500.0,0.00017806,2]
[404700933,1770484238233,-500.0,0.00017806,2]
[404700935,1770484238242,-500.0,0.00017806,2]
[404700937,1770484238252,-433.77301559,0.00017806,2]
[404700939,1770484238260,-500.0,0.00017806,2]
[404700941,1770484238270,-500.0,0.00017806,2]
[404700942,1770484238279,-500.0,0.00017806,2]
[404700944,1770484238289,-500.0,0.00017806,2]
[404700946,1770484238298,-500.0,0.00017806,2]
[404700948,1770484238308,-500.0,0.00017806,2]
[404700950,1770484238317,-500.0,0.00017806,2]
[404700952,1770484238326,-500.0,0.00017806,2]
[404700954,1770484238336,-500.0,0.00017806,2]
[404700956,1770484238345,-500.0,0.00017808,2]
[404700957,1770484238354,-500.0,0.00017808,2]
[404700959,1770484238365,-213.94,0.00017808,2]
[404700961,1770484238375,-150.0,0.00017808,2]
[404700963,1770484238384,-1605.71322315,0.00018255,2]
[404700965,1770484238393,-250.0,0.00018356,2]
[404700967,1770484238402,-420.0,0.00018679,2]
[404700969,1770484238412,-279.29931473,0.00018802,2]
[404700971,1770484238421,-310.31946067,0.00018904,2]
[404700972,1770484238430,-177.0,0.0001902,2]
[404700974,1770484238439,-265.0,0.00019337,2]
[404700976,1770484238449,-587.0,0.000204,2]
[404700978,1770484238459,-204.0,0.0002102,2]
[404700980,1770484238468,-279.29931471,0.00021077,2]
[404700982,1770484238478,-1605.71322312,0.00021254,2]
[404700983,1770484238487,-300.0,0.00021349,2]
[404700985,1770484238497,-1134.31,0.00022,14]
[404701000,1770484238507,-448.0,0.00022279,2]
[404701002,1770484238647,-231.0,0.0002302,2]
[404701004,1770484238657,-279.29931471,0.00023351,2]
[404701005,1770484238670,-1605.71322312,0.00024254,2]
[404701007,1770484238679,-287.19188452,0.00024404,7]
[404701009,1770484238688,-274.38376906,0.00024623,7]
[404701011,1770484238698,-274.38376906,0.00024897,7]
[404701013,1770484238710,-258.0,0.00025021,2]
[404701015,1770484238719,-200.0,0.00025187,2]
[404701017,1770484238728,-228.65314088,0.00025225,7]
[404701019,1770484238739,-121.42571747,0.00025401,2]
[404701521,1770484244362,-43.11028253,0.00025401,2]
[404701523,1770484244371,-279.29931471,0.00025626,2]
[404701526,1770484244382,-219.90316747,0.00026507,2]
[404701528,1770484244391,-1041.66666667,0.00026508,2]
[404701530,1770484244401,-285.0,0.00027021,2]
[404701531,1770484244412,-1605.71322312,0.00027253,2]
[404701532,1770484244422,-518.3694495,0.00027537,2]
[404701533,1770484244431,-172.365719,0.0002755,30]
[404701534,1770484244441,-1450.090981,0.0002755,30]
[404701535,1770484244451,-172.365719,0.0002755,30]
[404701536,1770484244461,-150.0,0.00027569,30]
[404701537,1770484244471,-199.531991,0.00027569,30]
[404701538,1770484244480,-249.063982,0.00027569,30]
[404701539,1770484244490,-298.595974,0.00027569,30]
[404701540,1770484244500,-348.127965,0.00027569,30]
[404701541,1770484244509,-397.659957,0.00027569,30]
[404701542,1770484244519,-447.191948,0.00027569,30]
[404701543,1770484244529,-496.72394,0.00027569,30]
[404701544,1770484244538,-546.255931,0.00027569,30]
[404701545,1770484244547,-595.787923,0.00027569,30]
[404701546,1770484244556,-172.365718,0.00027569,30]
[404701547,1770484244566,-1433.571964,0.00027569,30]
[404701548,1770484244575,-178.37997436,0.00027611,7]
[404701549,1770484244585,-150.0,0.00027702,30]
[404701550,1770484244595,-199.521385,0.00027702,30]
[404701551,1770484244604,-249.042771,0.00027702,30]
[404701552,1770484244614,-298.564157,0.00027702,30]
[404701553,1770484244623,-348.085543,0.00027702,30]
[404701555,1770484244632,-397.606929,0.00027702,30]
[404701556,1770484244642,-447.128314,0.00027702,30]
[404701558,1770484244651,-496.6497,0.00027702,30]
[404701560,1770484244663,-546.171086,0.00027702,30]
[404701562,1770484244673,-595.692472,0.00027702,30]
[404701564,1770484244683,-249.69891481,0.0002774,2]
[404701566,1770484244692,-7706.71540843,0.00027845,2]
[404701568,1770484244703,-1466.02,0.00027845,10]
[404701570,1770484244712,-2795.61,0.00027845,10]
[404701572,1770484244722,-150.0,0.00027854,30]
[404701574,1770484244733,-538.942456,0.00027854,30]
[404701576,1770484244742,-927.884912,0.00027854,30]
[404701578,1770484244751,-1316.827369,0.00027854,30]
[404701580,1770484244760,-1705.769825,0.00027854,30]
[404701582,1770484244769,-2094.712282,0.00027854,30]
[404701584,1770484244778,-2483.654738,0.00027854,30]
[404701586,1770484244788,-2872.597195,0.00027854,30]
[404701587,1770484244797,-3261.539651,0.00027854,30]
[404701589,1770484244806,-3650.482108,0.00027854,30]
[404701591,1770484244815,-193.250636,0.00027854,30]
[404701593,1770484244824,-151.28699,0.00027857,30]
[404701595,1770484244834,-151.544388,0.00027857,30]
[404701597,1770484244843,-151.801787,0.00027857,30]
[404701599,1770484244852,-152.059185,0.00027857,30]
[404701601,1770484244861,-152.316583,0.00027857,30]
[404701603,1770484244870,-172.365719,0.00027865,30]
[404701605,1770484244879,-7706.71540843,0.00027897,2]
[404701606,1770484244888,-279.29931471,0.000279,2]
[404701608,1770484244898,-19476.257159,0.00027907,2]
[404701610,1770484244907,-176.4324822,0.00027907,2]
[404701612,1770484244916,-390.8,0.00027953,3]
[404701614,1770484244925,-195.4,0.00027953,3]
[404701616,1770484244934,-586.25,0.00027953,3]
[404701618,1770484244943,-2329.68,0.00027953,10]
[404701620,1770484244953,-156.94436661,0.00027962,2]
[404701622,1770484244962,-5750.30007488,0.00027962,2]
[404701647,1770484245206,-1956.41533355,0.00027962,2]
[404701649,1770484245216,-6631.35314553,0.00027963,7]
[404701652,1770484245226,-20448.438993,0.00027963,7]
[404702970,1770484264459,502.13305338,0.00013699,2]
[404702971,1770484283671,500.0,0.00013273,2]
[404702972,1770484327459,500.0,0.00013273,2]
[404702973,1770484327491,1000.0,0.00013821,2]
[404702975,1770484329372,500.0,0.00013273,2]
[404702976,1770484329415,936.69070988,0.00013821,2]
[404702977,1770484329815,159.1472787,0.00014247,2]
[404702978,1770484329992,500.0,0.00013699,2]
[404702979,1770484383656,357.66527031,0.00013699,2]
[404702980,1770484383961,500.0,0.00013699,2]
[404702981,1770484384716,500.0,0.00013273,2]
[404702982,1770484384744,664.79232933,0.00013821,2]
[404702983,1770484406316,2000.0,0.000301,120]
[404702984,1770484499422,2000.0,0.000301,120]
[404702985,1770484504535,500.62172435,0.00013273,2]
[404702986,1770484504742,500.71191812,0.00013273,2]
[404702987,1770484508036,1000.0,0.00013821,2]
[404702988,1770484508090,500.0,0.00014368,2]
[404702989,1770484508147,500.0,0.00013273,2]
[404702991,1770484567203,500.0,0.00013273,2]
[404702992,1770484567249,500.0,0.00013821,2]
[404702993,1770484623369,569.02424739,0.00013699,2]
[404702994,1770484683904,470.07907748,0.00013699,2]
[404702995,1770484765741,503.26389974,0.00013273,2]
[404703921,1770484808890,500.0,0.00013699,2]
[404704003,1770484811591,500.44142396,0.00013273,2]
[404704762,1770484863485,500.66053018,0.00013699,2]
[404704778,1770484866147,559.27873612,0.00013699,2]
[404704802,1770484869497,500.59130532,0.00013699,2]
[404704844,1770484881569,500.0,0.00013273,2]
[404705006,1770484923297,500.66888394,0.00013699,2]
[404705007,1770484923942,501.14538276,0.00013699,2]
[404705008,1770484924345,500.0,0.00013273,2]
[404705009,1770484928001,500.34337378,0.00013699,2]
[404705010,1770484983629,500.94404474,0.00013699,2]
[404705011,1770484986035,500.71412981,0.00013699,2]
[404705012,1770484986286,500.89451633,0.00013699,2]
[404705013,1770484988152,500.0,0.00013699,2]
[404705014,1770484989152,500.0,0.00013699,2]
[404705015,1770484989718,500.66110889,0.00013699,2]
[404705016,1770484990018,501.38571489,0.00013699,2]
[404705017,1770484991149,502.04431446,0.00013699,2]
[404705018,1770484993037,502.49860331,0.00013699,2]
[404705019,1770484994418,500.0,0.00013699,2]
[404705020,1770484995975,448.81581289,0.00013699,2]
[404705021,1770484997124,500.0,0.00013699,2]
[404705022,1770484997938,500.96584768,0.00013699,2]
[404705023,1770484998192,500.0,0.00013273,2]
[404705024,1770485000159,540.93774397,0.00013699,2]
[404705025,1770485046878,388.80744541,0.00013699,2]
[404705026,1770485047055,500.0,0.00013273,2]
[404705027,1770485103479,500.0,0.00013699,2]
[404705028,1770485107300,500.0,0.00013699,2]
[404705029,1770485112392,442.19195408,0.00013699,2]
[404705030,1770485118196,500.0,0.00013699,2]
[404705031,1770485122454,500.0,0.00013699,2]
[404705032,1770485123167,500.0,0.00013273,2]
[404705033,1770485123200,500.0,0.00013273,2]
[404705034,1770485123855,500.0,0.00013273,2]
[404705035,1770485125716,468.94104433,0.00013699,2]
[404705036,1770485127740,501.93163309,0.00013273,2]
[404705037,1770485128579,500.24363204,0.00013273,2]
[404705040,1770485164035,500.0,0.00013273,2]
[404705041,1770485164756,500.0,0.00013699,2]
[404705042,1770485165047,500.0,0.00013273,2]
[404705043,1770485165084,151.20567908,0.00013673,2]
[404705044,1770485165113,519.30346587,0.00013273,2]
[404705045,1770485165154,500.0,0.00013699,2]
[404705046,1770485165234,500.90447597,0.00013273,2]
[404705047,1770485165312,500.0,0.00013273,2]
[404705048,1770485165351,500.0,0.00013699,2]
[404705049,1770485166475,501.04922749,0.00013273,2]
[404705050,1770485167417,500.0,0.00013699,2]
[404705051,1770485167971,501.02767791,0.00013273,2]
[404705052,1770485168102,500.0,0.00013273,2]
[404705053,1770485168135,345.32992802,0.00013699,2]
[404705054,1770485170522,500.0,0.00013273,2]
[404705055,1770485195566,4699.77,0.000159,2]
[404705056,1770485223589,500.0,0.00013273,2]
[404705057,1770485224528,500.40183954,0.00013699,2]
[404705058,1770485225309,500.57983755,0.00013699,2]
[404705059,1770485225459,5000.0,0.000159,2]
[404705060,1770485226554,541.70062063,0.00013699,2]
[404705061,1770485227682,500.0,0.00013273,2]
[404705062,1770485230283,613.46317839,0.00013273,2]
[404705063,1770485230463,500.0,0.00013699,2]
[404705064,1770485232438,403.41057105,0.00013273,2]
[404705065,1770485233518,500.0,0.00013273,2]
[404705066,1770485236296,186.16118977,0.00013273,2]
[404705067,1770485236680,374.89899081,0.00013273,2]
[404705068,1770485237293,501.15339612,0.00013273,2]
[404705069,1770485237401,500.95941142,0.00013273,2]
[404705070,1770485237618,211.4547985,0.00013273,2]
[404705071,1770485239082,500.0,0.00013699,2]
[404705072,1770485240431,500.0,0.00013273,2]
[404705073,1770485240602,500.0,0.00013273,2]
[404705074,1770485242996,500.9452485,0.00013273,2]
[404705075,1770485243027,500.31670719,0.00013273,2]
[404705076,1770485244747,500.0,0.00013273,2]
[404705077,1770485248045,5000.0,0.000159,2]
[404705078,1770485270128,5000.0,0.000159,2]
[404705079,1770485278208,5000.0,0.000159,2]
[404705080,1770485283826,500.41684936,0.00013699,2]
[404705081,1770485286047,500.0,0.00013273,2]
[404705082,1770485286863,500.0,0.00013273,2]
[404705083,1770485293947,5000.0,0.000159,2]
[404705084,1770485302027,805.86599521,0.000159,2]
[404705085,1770485344306,400.56235635,0.00013273,2]
[404705086,1770485344339,500.35256986,0.00013699,2]
[404705087,1770485344408,617.08866138,0.00013699,2]
[404705088,1770485344436,533.90143387,0.00013699,2]
[404705089,1770485347116,500.0,0.00013273,2]
[404705090,1770485347448,500.0,0.00013699,2]
[404705091,1770485347976,500.0,0.00013273,2]
[404705092,1770485348411,501.67754282,0.00013699,2]
[404705093,1770485353344,500.0,0.00013699,2]
[404705094,1770485355496,500.0,0.00013273,2]
[404705095,1770485358591,500.0,0.00013273,2]
[404705096,1770485360265,500.0,0.00013699,2]
[404705097,1770485360844,500.0,0.00013273,2]
[404705098,1770485363378,506.74772185,0.00013273,2]
[404705099,1770485363457,500.61541036,0.00013273,2]
[404705100,1770485406211,500.0,0.00013273,2]
[404705101,1770485406397,209.54708386,0.00013273,2]
[404705102,1770485406558,500.0,0.00013273,2]
[404705103,1770485406603,221.60613705,0.00013821,2]
[404705104,1770485407141,504.36021843,0.00013699,2]
[404705105,1770485407564,500.0,0.00013699,2]
[404705106,1770485407662,500.0,0.00013273,2]
[404705107,1770485407708,1000.0,0.00013821,2]
[404705108,1770485410203,500.0,0.00013273,2]
[404705109,1770485410256,1000.0,0.00013821,2]
[404705110,1770485410310,500.0,0.00014368,2]
[404705143,1770485432023,-247.09,0.000161,2]
[404705145,1770485432032,-310.17,0.000161,2]
[404705151,1770485432077,-343.83,0.000161,2]
[404705153,1770485432087,-150.0,0.00016132,2]
[404705155,1770485432096,-188.99968418,0.00016164,2]
[404705157,1770485432106,-42.39351774,0.00016165,2]
[404705163,1770485432117,-878.94873511,0.00016165,2]
[404705165,1770485432126,-261.43405818,0.00016267,2]
[404705250,1770485438039,-38.56594182,0.00016267,2]
[404705251,1770485438049,-300.0,0.00016267,2]
[404705252,1770485438060,-1200.0,0.00016267,2]
[404705253,1770485438070,-9436.57434984,0.00016268,2]
[404705254,1770485438081,-230.5111123,0.00016549,2]
[404705255,1770485438091,-420.0,0.0001778,2]
[404705256,1770485438101,-289.0,0.0001778,2]
[404705257,1770485438273,-150.0,0.00017808,2]
[404705258,1770485438283,-1200.0,0.00017869,2]
[404705259,1770485438293,-177.0,0.00018132,2]
[404705260,1770485438303,-350.0,0.00018356,2]
[404705261,1770485438313,-50000.0,0.00018356,2]
[404705262,1770485438323,-303.10001603,0.000189,2]
[404705263,1770485438334,-152.06974462,0.00019089,2]
[404705264,1770485438344,-467.0,0.00019435,2]
[404705265,1770485438355,-921.34225284,0.00019465,2]
[404705266,1770485438364,-14164.39767715,0.0002,2]
[404705267,1770485438375,-204.0,0.00020132,2]
[404705268,1770485438385,-694.44970998,0.0002015,2]
[404705269,1770485438395,-500.0,0.00021917,2]
[404705270,1770485438406,-500.0,0.00021918,2]
[404705271,1770485438416,-231.0,0.00022132,2]
[404705272,1770485438426,-210.00523448,0.00022766,2]
[404705273,1770485438438,-711.33701836,0.00022766,2]
[404705274,1770485438448,-184.64789296,0.00023288,2]
[404705275,1770485438458,-258.0,0.00024132,2]
[404705276,1770485438467,-500.0,0.00024352,2]
[404705277,1770485438477,-500.0,0.00024352,2]
[404705278,1770485438488,-1734.76,0.0002464,10]
[404705279,1770485438498,-1652.27,0.0002464,10]
[404705280,1770485438508,-1376.89,0.0002464,10]
[404705281,1770485438517,-19593.01388793,0.0002465,2]
[404705282,1770485438537,-1150.2222687,0.0002465,2]
[404705708,1770485444485,-18.47303898,0.00016164,2]
[404705890,1770485446356,-481.52696102,0.00016164,2]
[404705893,1770485446365,-500.0,0.00016164,2]
[404705894,1770485446375,-500.0,0.00016164,2]
[404705896,1770485446384,-500.0,0.00016164,2]
[404705898,1770485446392,-500.0,0.00016164,2]
[404705899,1770485446400,-500.0,0.00016164,2]
[404705901,1770485446409,-500.0,0.00016164,2]
[404705903,1770485446419,-371.77814907,0.00016164,2]
[404705905,1770485446428,-500.0,0.00016164,2]
[404705907,1770485446437,-500.0,0.00016164,2]
[404705909,1770485446446,-500.0,0.00016164,2]
[404705911,1770485446454,-500.0,0.00016164,2]
[404705913,1770485446463,-500.0,0.00016164,2]
[404705915,1770485446472,-500.0,0.00016164,2]
[404705917,1770485446481,-500.0,0.00016164,2]
[404705919,1770485446491,-500.0,0.00016164,2]
[404705921,1770485446500,-500.0,0.00016164,2]
[404705923,1770485446509,-500.0,0.00016164,2]
[404705925,1770485446519,-500.0,0.00016164,2]
[404705926,1770485446528,-500.0,0.00016164,2]
[404705928,1770485446537,-500.0,0.00016164,2]
[404705930,1770485446547,-500.0,0.00016164,2]
[404705932,1770485446556,-500.0,0.00016164,2]
[404705934,1770485446567,-500.0,0.00016164,2]
[404705936,1770485446577,-500.0,0.00016164,2]
[404705938,1770485446586,-500.0,0.00016164,2]
[404705940,1770485446595,-500.0,0.00016164,2]
[404705942,1770485446605,-500.0,0.00016164,2]
[404705944,1770485446614,-500.0,0.00016164,2]
[404705946,1770485446623,-500.0,0.00016164,2]
[404705948,1770485446636,-500.0,0.00016164,2]
[404705950,1770485446645,-500.0,0.00016164,2]
[404705952,1770485446655,-500.0,0.00016164,2]
[404705954,1770485446665,-304.88913968,0.00016164,2]
[404705955,1770485446675,-500.0,0.00016164,2]
[404705957,1770485446685,-500.0,0.00016164,2]
[404705959,1770485446694,-500.0,0.00016164,2]
[404705961,1770485446704,-500.0,0.00016164,2]
[404705963,1770485446713,-500.0,0.00016164,2]
[404705965,1770485446723,-153.93221722,0.00018512,2]
[404705967,1770485446732,-29512.32279034,0.0002465,2]
[404706498,1770485464078,500.40606361,0.00013699,2]
[404706499,1770485465047,500.0,0.00013273,2]
[404706500,1770485465102,1000.0,0.00013821,2]
[404706501,1770485467099,460.52611983,0.00013699,2]
[404706502,1770485467127,500.0,0.00013699,2]
[404706503,1770485468252,500.0,0.00013699,2]
[404706504,1770485468315,332.93679327,0.00014247,2]
[404706505,1770485468832,500.0,0.00013699,2]
[404706510,1770485474100,500.0,0.00013699,2]
[404706511,1770485481960,504.78667089,0.00013699,2]
[404706512,1770485482679,500.0,0.00013273,2]
[404706513,1770485482729,759.71806802,0.00013821,2]
[404706514,1770485482752,240.28193198,0.00013821,2]
[404706515,1770485484193,164.22866867,0.00013973,2]
[404706517,1770485526864,500.0,0.00013699,2]
[404706518,1770485529213,500.0,0.00013273,2]
[404706519,1770485529270,1026.91838931,0.00013821,2]
[404706520,1770485529434,500.0,0.00013699,2]
[404706521,1770485584293,436.44416927,0.00013699,2]
[404706522,1770485584323,353.75609699,0.00014247,2]
[404706523,1770485584481,500.0,0.00013699,2]
[404706524,1770485586121,361.13333414,0.00013273,2]
[404706525,1770485590250,500.0,0.00013699,2]
[404706526,1770485590574,500.0,0.00013699,2]
[404706527,1770485591238,500.0,0.00013699,2]
[404706528,1770485597378,500.0,0.00013273,2]
[404706529,1770485597462,158.83039344,0.00013699,2]
[404706530,1770485597572,491.1711372,0.00013273,2]
[404706531,1770485599215,500.0,0.00013699,2]
[404706532,1770485599622,353.6239305,0.00013273,2]
[404706533,1770485600050,544.09247582,0.00013699,2]
[404706534,1770485643737,500.856429,0.00013699,2]
[404706535,1770485646995,500.0,0.00013699,2]
[404706536,1770485648078,300.0,0.00013673,2]
[404706537,1770485706623,500.0,0.00013273,2]
[404706538,1770485706664,500.0,0.00013273,2]
[404706539,1770485706724,1000.0,0.00013821,2]
[404706540,1770485713133,500.0,0.00013273,2]
[404706541,1770485713160,607.22203791,0.00013699,2]
[404706542,1770485713189,1000.0,0.00013821,2]
[404706543,1770485713225,500.0,0.00013699,2]
[404706544,1770485713390,500.0,0.00013699,2]
[404706545,1770485713425,159.0562722,0.00014247,2]
[404706546,1770485715800,500.0,0.00013699,2]
[404706547,1770485716195,301.08055174,0.00013699,2]
[404706548,1770485722775,500.0,0.00013699,2]
[404706549,1770485726131,500.0,0.00013699,2]
[404706550,1770485731207,500.0,0.00013273,2]
[404706551,1770485765170,300.0,0.00013673,2]
[404706553,1770485823842,500.0,0.00013273,2]
[404706554,1770485823869,279.49398459,0.00013821,2]
[404706555,1770485824134,500.0,0.00013699,2]
[404706556,1770485824179,500.0,0.00013273,2]
[404706557,1770485824228,637.33832369,0.00013273,2]
[404706558,1770485824258,500.0,0.00013821,2]
[404706559,1770485824392,381.76872298,0.00013699,2]
[404706560,1770485827486,500.0,0.00013273,2]
[404706561,1770485827518,346.22769363,0.00013699,2]
[404706562,1770485827573,500.0,0.00013273,2]
[404706563,1770485827600,1000.0,0.00013821,2]
[404706564,1770485827628,500.0,0.00013821,2]
[404706565,1770485837188,499.99,0.00013699,2]
[404706566,1770485841508,500.0,0.00013699,2]
[404706567,1770485844009,500.0,0.00013699,2]
[404706568,1770485943420,221.17535147,0.00013699,2]
[404706569,1770485943536,500.0,0.00013699,2]
[404706570,1770486004370,555.13,0.000135,2]
[404706571,1770486004927,555.13,0.000135,2]
[404706572,1770486005404,555.13,0.000136,2]
[404706573,1770486005958,555.13,0.000136,2]
[404706574,1770486006539,555.13,0.000136,2]
[404706575,1770486007124,555.13,0.000137,2]
[404706576,1770486008093,555.13,0.000137,2]
[404706577,1770486008685,555.13,0.000137,2]
[404706578,1770486009364,555.13,0.000138,2]
[404706579,1770486009984,555.13,0.000138,2]
[404706580,1770486010349,300.0,0.00013673,2]
[404706581,1770486010631,555.13,0.000138,2]
[404706582,1770486011019,555.13,0.000139,2]
[404706583,1770486011596,555.13,0.000139,2]
[404706584,1770486012160,555.13,0.000139,2]
[404706585,1770486012749,555.13,0.000139,2]
[404706586,1770486013836,555.13,0.00014,2]
[404706587,1770486014364,555.13,0.00014,2]
[404706588,1770486014998,555.13,0.00014,2]
[404706589,1770486015459,555.13,0.000141,2]
[404706590,1770486016114,555.13,0.000141,2]
[404706591,1770486016690,555.13,0.000141,2]
[404706592,1770486017269,555.13,0.000142,2]
[404706593,1770486017773,555.13,0.000142,2]
[404706594,1770486018366,555.13,0.000142,2]
[404706595,1770486018986,555.13,0.000143,2]
[404706596,1770486019588,555.13,0.000143,2]
[404706597,1770486020131,555.13,0.000143,2]
[404706598,1770486020699,555.13,0.000144,2]
[404706602,1770486021272,555.13,0.000144,2]
[404706603,1770486021815,555.13,0.000144,2]
[404706604,1770486022381,555.13,0.000145,2]
[404706605,1770486022937,555.13,0.000145,2]
[404706606,1770486023492,555.13,0.000145,2]
[404706607,1770486024057,555.13,0.000146,2]
[404706608,1770486024536,555.13,0.000146,2]
[404706609,1770486025027,555.13,0.000146,2]
[404706610,1770486025601,555.13,0.000147,2]
[404706611,1770486026236,555.13,0.000147,2]
[404706612,1770486026661,555.13,0.000147,2]
[404706613,1770486027226,555.13,0.000147,2]
[404706614,1770486027803,555.13,0.000148,2]
[404706615,1770486028406,555.13,0.000148,2]
[404706616,1770486028955,555.13,0.000148,2]
[404706617,1770486029529,555.13,0.000149,2]
[404706618,1770486030093,555.13,0.000149,2]
[404706619,1770486030797,555.13,0.000149,2]
[404706620,1770486031219,555.13,0.00015,2]
[404706621,1770486031693,555.13,0.00015,2]
[404706622,1770486032670,555.13,0.00015,2]
[404706623,1770486034900,554.96,0.000135,2]
[404706624,1770486045347,391.86278418,0.000159,2]
[404706625,1770486063340,500.0,0.00013273,2]
[404706626,1770486063373,500.0,0.00013699,2]
[404706627,1770486063398,1000.0,0.00013821,2]
[404706628,1770486063422,500.39574668,0.00013699,2]
[404706629,1770486063564,500.0,0.00013273,2]
[404706630,1770486063680,500.0,0.00013273,2]
[404706631,1770486104056,326.72922112,0.000159,2]
[404706632,1770486124320,500.0,0.00013273,2]
[404706633,1770486302803,638.54957235,0.00013699,2]